bitfinex/quotes_SOLUSD_20250101
["timestamp","ask_amount","ask_price","bid_price","bid_amount"]
[1735697433918,10.53170024,190.96,190.9,37.6578202]
[1735697434416,10.53170024,190.97,190.9,48.18952044]
[1735697434717,10.53170024,190.96,190.9,37.6578202]
[1735697435322,10.53170024,190.95,190.9,36.872284]
[1735697435519,10.53170024,190.93,190.9,36.872284]
[1735697435822,10.53170024,190.94,190.9,36.872284]
[1735697438026,10.53170024,190.95,190.9,36.872284]
[1735697438327,10.53170024,190.96,190.9,36.872284]
[1735697439120,10.53170024,190.97,190.9,37.65777642]
[1735697439334,10.53170024,190.97,190.9,48.18947666]
[1735697442099,20.0,191.02,190.9,48.18947666]
[1735697442302,10.53170024,190.98,190.91,10.53170024]
[1735697442527,10.53170024,190.98,190.93,23.776884]
[1735697443419,10.53170024,190.99,190.95,23.776884]
[1735697444019,10.53170024,191.0,190.95,23.776884]
[1735697444222,10.53170024,191.0,190.95,36.869084]
[1735697445128,6.2720356,191.08,190.95,36.869084]
[1735697445302,10.53170024,191.02,190.95,36.869084]
[1735697446931,6.2720356,191.08,190.97,23.776884]
[1735697447226,10.53170024,191.02,190.97,23.776884]
[1735697448830,10.53170024,191.03,190.99,23.776884]
[1735697449830,10.53170024,191.04,191.01,23.776884]
[1735697450034,6.2720356,191.08,191.01,23.776884]
[1735697450211,10.53170024,191.04,191.01,23.776884]
[1735697451520,10.53170024,191.02,191.01,23.776884]
[1735697453038,10.53170024,191.03,191.01,23.776884]
[1735697454833,6.2720356,191.08,191.01,23.776884]
[1735697455026,10.53170024,191.06,191.01,29.800584]
[1735697455219,10.53170024,191.07,191.01,42.888484]
[1735697455533,10.53170024,191.08,191.01,54.20521177]
[1735697456610,6.2720356,191.14,191.03,23.776884]
[1735697456817,10.53170024,191.1,191.03,48.18041287]
[1735697457017,10.53170024,191.1,191.05,23.776884]
[1735697457924,48.19690096,191.2,191.05,37.64676089]
[1735697458128,10.53170024,191.11,191.05,37.64676089]
[1735697459237,20.0,191.17,191.05,37.64676089]
[1735697459439,10.53170024,191.11,191.05,37.64676089]
[1735697460718,10.53170024,191.08,191.05,36.861884]
[1735697460914,10.53170024,191.09,191.05,36.861884]
[1735697461332,10.53170024,191.1,191.05,36.861884]
[1735697461549,10.53170024,191.11,191.05,37.64678047]
[1735697463733,10.53170024,191.12,191.05,37.64678047]
[1735697464815,1.16222763,191.19,191.09,23.776884]
[1735697465020,11.01622723,191.25,191.11,23.776884]
[1735697465228,10.53170024,191.17,191.11,23.776884]
[1735697465429,10.53170024,191.18,191.13,23.776884]
[1735697465934,20.0,191.21,191.13,23.776884]
[1735697466140,10.53170024,191.2,191.15,23.776884]
[1735697466549,10.53170024,191.2,191.15,30.292684]
[1735697466849,10.53170024,191.2,191.17,23.776884]
[1735697467016,10.53170024,191.19,191.17,23.776884]
[1735697467445,10.53170024,191.18,191.16,1.663]
[1735697468244,10.53170024,191.19,191.16,1.663]
[1735697468936,10.53170024,191.19,191.17,23.776884]
[1735697469152,10.53170024,191.2,191.17,23.776884]
[1735697470040,10.53170024,191.21,191.17,23.776884]
[1735697471122,10.53170024,191.2,191.17,23.776884]
[1735697471823,10.53170024,191.21,191.17,23.776884]
[1735697477052,41.02507477,191.31,191.19,23.776884]
[1735697477230,10.53170024,191.25,191.19,23.776884]
[1735697478125,10.53170024,191.25,191.21,23.776884]
[1735697478520,10.53170024,191.26,191.21,23.776884]
[1735697478920,12.61304671,191.35,191.21,23.776884]
[1735697478921,10.53170024,191.27,191.21,23.776884]
[1735697479124,10.53170024,191.26,191.21,23.776884]
[1735697480437,12.61304671,191.35,191.23,23.776884]
[1735697480630,10.53170024,191.27,191.23,23.776884]
[1735697481435,6.703467,191.37,191.25,23.776884]
[1735697481644,6.3653,191.4,191.25,23.776884]
[1735697481645,10.53170024,191.32,191.25,10.53170024]
[1735697482461,10.53170024,191.32,191.25,11.31571915]
[1735697482949,10.53170024,191.31,191.25,0.78401891]
[1735697483165,10.53170024,191.3,191.26,23.776884]
[1735697483363,10.53170024,191.27,191.22,1.663]
[1735697483546,10.53170024,191.24,191.22,1.663]
[1735697484044,10.53170024,191.23,191.22,25.439884]
[1735697484244,10.53170024,191.24,191.22,1.663]
[1735697485140,10.53170024,191.25,191.23,23.776884]
[1735697485853,10.53170024,191.26,191.23,23.776884]
[1735697488658,10.53170024,191.27,191.23,23.776884]
[1735697489771,1.16222762,191.34,191.23,23.776884]
[1735697489968,10.53170024,191.28,191.23,23.776884]
[1735697490674,10.53170024,191.27,191.23,23.776884]
[1735697491162,10.53170024,191.27,191.26,23.776884]
[1735697491539,10.53170024,191.27,191.22,14.7364]
[1735697491849,10.53170024,191.26,191.22,14.7364]
[1735697492171,10.53170024,191.27,191.23,23.776884]
[1735697492947,10.53170024,191.26,191.22,1.663]
[1735697493251,10.53170024,191.23,191.18,1.5527]
[1735697493562,10.53170024,191.23,191.19,43.776884]
[1735697493963,10.53170024,191.23,191.19,20.0]
[1735697494564,10.53170024,191.23,191.2,23.776884]
[1735697498445,10.53170024,191.23,191.19,23.776884]
[1735697508085,10.53170024,191.2,191.13,1.5575]
[1735697508382,10.53170024,191.18,191.14,23.776884]
[1735697508883,6.2978,191.26,191.14,23.776884]
[1735697508884,10.53170024,191.19,191.14,23.776884]
[1735697509686,10.53170024,191.18,191.14,23.776884]
[1735697509982,10.53170024,191.19,191.14,23.776884]
[1735697510357,10.53170024,191.18,191.14,23.776884]
[1735697512989,10.53170024,191.17,191.14,23.776884]
[1735697513196,10.53170024,191.17,191.13,1.5575]
[1735697517078,10.53170024,191.16,191.13,1.5575]
[1735697521596,10.53170024,191.17,191.13,1.5575]
[1735697521902,10.53170024,191.17,191.14,23.776884]
[1735697522191,10.53170024,191.17,191.13,1.5575]
[1735697530640,10.53170024,191.16,191.13,1.5575]
[1735697530935,10.53170024,191.15,191.13,1.5575]
[1735697531425,10.53170024,191.15,191.1,6.0489]
[1735697532715,10.53170024,191.13,191.1,6.0489]
[1735697533028,10.53170024,191.13,191.09,1.6335]
[1735697533207,10.53170024,191.12,191.09,1.6335]
[1735697534231,10.53170024,191.13,191.09,1.6335]
[1735697538032,10.53170024,191.15,191.1,23.776884]
[1735697538331,10.53170024,191.16,191.1,23.776884]
[1735697541534,10.53170024,191.17,191.1,23.776884]
[1735697542243,20.0,191.2,191.1,23.776884]
[1735697542410,10.53170024,191.2,191.14,23.776884]
[1735697543416,10.53170024,191.2,191.16,23.776884]
[1735697543623,10.53170024,191.21,191.16,23.776884]
[1735697543819,10.53170024,191.2,191.16,23.776884]
[1735697544013,10.53170024,191.17,191.15,1.5125]
[1735697544342,10.53170024,191.18,191.15,1.5125]
[1735697544641,10.53170024,191.17,191.15,1.5125]
[1735697547412,10.53170024,191.16,191.11,6.6178]
[1735697547612,10.53170024,191.15,191.11,6.6178]
[1735697547931,10.53170024,191.15,191.12,23.776884]
[1735697548441,10.53170024,191.14,191.11,6.6178]
[1735697548613,10.53170024,191.14,191.1,1.5125]
[1735697551844,10.53170024,191.15,191.1,1.5125]
[1735697554920,10.53170024,191.14,191.1,1.5125]
[1735697555120,10.53170024,191.13,191.1,1.5125]
[1735697556462,10.53170024,191.14,191.1,1.5125]
[1735697557028,10.53170024,191.13,191.1,1.5125]
[1735697557237,10.53170024,191.11,191.07,6.6178]
[1735697557630,10.53170024,191.11,191.05,1.5941]
[1735697557831,10.53170024,191.1,191.05,1.5941]
[1735697558535,10.53170024,191.11,191.05,1.5941]
[1735697559231,10.53170024,191.1,191.05,1.5941]
[1735697562059,10.53170024,191.09,191.05,1.5941]
[1735697563043,10.53170024,191.08,191.05,1.5941]
[1735697563834,10.53170024,191.09,191.05,1.5941]
[1735697567665,10.53170024,191.08,191.05,1.5941]
[1735697569954,10.53170024,191.09,191.05,1.5941]
[1735697577868,10.53170024,191.08,191.05,1.5941]
[1735697578674,10.53170024,191.09,191.05,1.5941]
[1735697585180,10.53170024,191.1,191.05,1.5941]
[1735697585490,10.53170024,191.11,191.05,1.5941]
[1735697586490,10.53170024,191.1,191.05,1.5941]
[1735697590591,10.53170024,191.08,191.05,1.5941]
[1735697594699,10.53170024,191.09,191.05,1.5941]
[1735697605997,20.0,191.12,191.05,1.5941]
[1735697606296,10.53170024,191.15,191.08,10.53170024]
[1735697606609,10.53170024,191.15,191.09,6.1065]
[1735697607321,42.12680096,191.2,191.09,6.1065]
[1735697607322,10.53170024,191.14,191.09,6.1065]
[1735697607501,10.53170024,191.13,191.09,6.1065]
[1735697607677,10.53170024,191.15,191.09,6.1065]
[1735697608580,10.53170024,191.14,191.09,6.1065]
[1735697612319,20.0,191.18,191.09,6.1065]
[1735697612504,10.53170024,191.14,191.09,6.1065]
[1735697614204,10.53170024,191.1,191.05,7.7006]
[1735697614388,10.53170024,191.09,191.05,7.7006]
[1735697614590,10.53170024,191.08,191.05,7.7006]
[1735697614787,10.53170024,191.09,191.05,7.7006]
[1735697617205,10.53170024,191.1,191.05,7.7006]
[1735697617606,10.53170024,191.1,191.05,1.5941]
[1735697620116,20.0,191.13,191.05,1.5941]
[1735697620299,10.53170024,191.12,191.06,23.776884]
[1735697620503,10.53170024,191.12,191.06,29.928384]
[1735697621708,20.0,191.16,191.06,40.46008424]
[1735697622020,10.53170024,191.16,191.09,10.53170024]
[1735697622333,10.53170024,191.16,191.1,23.776884]
[1735697623005,10.53170024,191.17,191.1,23.776884]
[1735697623387,8.19286765,191.24,191.15,23.776884]
[1735697623590,136.08588248,191.3,191.15,23.776884]
[1735697623591,10.53170024,191.21,191.15,23.776884]
[1735697623798,10.53170024,191.22,191.15,10.53170024]
[1735697624005,10.53170024,191.22,191.16,23.776884]
[1735697624225,14.17617927,191.28,191.18,23.776884]
[1735697624412,14.17617927,191.28,191.18,34.30858424]
[1735697624413,10.53170024,191.25,191.18,34.30858424]
[1735697624796,10.53170024,191.25,191.2,23.776884]
[1735697624995,10.53170024,191.24,191.2,23.776884]
[1735697626013,10.53170024,191.25,191.2,23.776884]
[1735697626220,10.53170024,191.24,191.2,23.776884]
[1735697626709,10.53170024,191.22,191.19,6.1515]
[1735697626918,10.53170024,191.22,191.17,1.656]
[1735697627102,10.53170024,191.22,191.18,23.776884]
[1735697627420,10.53170024,191.24,191.18,23.776884]
[1735697630899,10.53170024,191.23,191.18,23.776884]
[1735697631224,10.53170024,191.22,191.18,23.776884]
[1735697631800,10.53170024,191.23,191.18,23.776884]
[1735697632506,10.53170024,191.22,191.18,23.776884]
[1735697632704,10.53170024,191.21,191.18,23.776884]
[1735697632917,10.53170024,191.2,191.17,1.656]
[1735697633707,10.53170024,191.19,191.17,1.656]
[1735697633909,10.53170024,191.18,191.15,6.1515]
[1735697634118,10.0,191.26,191.13,23.776884]
[1735697634119,10.53170024,191.16,191.13,23.776884]
[1735697634811,5.98331162,191.28,191.16,23.776884]
[1735697635020,10.53170024,191.24,191.18,23.776884]
[1735697635219,10.53170024,191.25,191.18,23.776884]
[1735697635418,10.53170024,191.25,191.2,23.776884]
[1735697636428,13.0658,191.34,191.19,6.4983]
[1735697636429,62.1092416,191.38,191.24,23.776884]
[1735697636621,10.53170024,191.31,191.24,10.53170024]
[1735697636820,10.53170024,191.3,191.24,23.776884]
[1735697639226,10.53170024,191.31,191.24,10.53170024]
[1735697639431,10.53170024,191.31,191.25,23.776884]
[1735697639820,10.53170024,191.31,191.23,13.85666666]
[1735697639821,10.53170024,191.3,191.23,24.3883669]
[1735697640428,10.53170024,191.3,191.24,23.776884]
[1735697642534,10.53170024,191.31,191.24,34.30858424]
[1735697647228,10.53170024,191.3,191.23,10.53170024]
[1735697647427,10.53170024,191.28,191.21,12.18830024]
[1735697647635,10.53170024,191.28,191.22,23.776884]
[1735697649529,10.53170024,191.29,191.22,23.776884]
[1735697651439,10.53170024,191.29,191.22,34.30858424]
[1735697652030,10.53170024,191.31,191.24,23.776884]
[1735697652235,10.53170024,191.31,191.24,34.30858424]
[1735697655138,55.18900096,191.4,191.27,8.1434]
[1735697655439,10.53170024,191.34,191.28,23.776884]
[1735697658040,16.886017,191.43,191.3,10.53170024]
[1735697658041,19.2439,191.43,191.3,10.53170024]
[1735697658214,10.53170024,191.37,191.3,10.53170024]
[1735697660430,20.0,191.4,191.32,23.776884]
[1735697660645,10.53170024,191.38,191.32,23.776884]
[1735697661368,10.53170024,191.37,191.32,23.776884]
[1735697661664,10.53170024,191.35,191.32,23.776884]
[1735697661835,10.53170024,191.33,191.31,8.1434]
[1735697662246,10.53170024,191.34,191.31,8.1434]
[1735697662872,75.18860096,191.4,191.31,8.1434]
[1735697662873,10.53170024,191.35,191.31,8.1434]
[1735697665333,75.18860096,191.4,191.31,8.1434]
[1735697665536,10.53170024,191.35,191.31,8.1434]
[1735697667472,10.53170024,191.34,191.31,1.5487]
[1735697667649,10.53170024,191.33,191.31,1.5487]
[1735697669743,10.53170024,191.34,191.31,1.5487]
[1735697670957,10.53170024,191.35,191.31,1.5487]
[1735697671545,10.53170024,191.34,191.31,1.5487]
[1735697671957,10.53170024,191.35,191.31,1.5487]
[1735697672172,10.53170024,191.36,191.31,1.5487]
[1735697675340,13.0598,191.43,191.31,1.5487]
[1735697675747,20.0,191.4,191.32,23.776884]
[1735697675946,10.53170024,191.37,191.32,23.776884]
[1735697677862,10.0,191.46,191.32,23.776884]
[1735697677863,13.0552,191.5,191.37,23.776884]
[1735697678162,13.0552,191.5,191.37,34.30858424]
[1735697678163,55.18200096,191.5,191.37,34.30858424]
[1735697678351,20.0,191.47,191.37,34.30858424]
[1735697678551,10.53170024,191.44,191.39,23.776884]
[1735697678970,10.53170024,191.45,191.4,1.5825]
[1735697679265,23.0509,191.56,191.41,16.73110024]
[1735697679447,10.53170024,191.48,191.41,16.73110024]
[1735697680062,10.53170024,191.48,191.42,23.776884]
[1735697686049,10.53170024,191.48,191.41,16.73110024]
[1735697686050,10.53170024,191.45,191.41,6.1994]
[1735697686241,10.53170024,191.44,191.41,6.1994]
[1735697687249,42.12680096,191.5,191.41,6.1994]
[1735697687250,10.53170024,191.45,191.41,6.1994]
[1735697690668,5.0,191.56,191.42,23.776884]
[1735697690851,10.53170024,191.5,191.44,23.776884]
[1735697693459,10.53170024,191.49,191.42,34.30858424]
[1735697694470,10.53170024,191.5,191.44,25.382184]
[1735697694671,10.53170024,191.51,191.44,35.91388424]
[1735697694972,10.53170024,191.51,191.46,23.776884]
[1735697695174,20.0,191.56,191.46,23.776884]
[1735697695367,10.53170024,191.52,191.46,10.53170024]
[1735697696651,10.53170024,191.52,191.46,23.776884]
[1735697696848,20.0,191.56,191.48,10.53170024]
[1735697697053,20.0,191.56,191.49,6.0441]
[1735697697263,10.53170024,191.54,191.49,6.0441]
[1735697699450,10.53170024,191.53,191.49,6.0441]
[1735697700181,10.53170024,191.52,191.49,6.0441]
[1735697700359,10.53170024,191.51,191.45,23.776884]
[1735697700970,10.53170024,191.51,191.44,18.18110024]
[1735697701277,10.53170024,191.51,191.45,23.776884]
[1735697701479,20.0,191.54,191.45,23.776884]
[1735697701683,13.0505,191.57,191.44,7.6494]
[1735697701684,10.53170024,191.49,191.44,7.6494]
[1735697703383,10.53170024,191.5,191.44,7.6494]
[1735697704784,20.0,191.54,191.44,18.18110024]
[1735697704960,10.53170024,191.51,191.44,18.18110024]
[1735697705584,20.0,191.54,191.44,18.18110024]
[1735697705776,10.53170024,191.51,191.44,18.18110024]
[1735697706383,20.0,191.54,191.44,18.18110024]
[1735697706570,10.53170024,191.51,191.44,18.18110024]
[1735697707397,10.53170024,191.5,191.44,7.6494]
[1735697710060,10.53170024,191.46,191.44,1.6053]
[1735697710266,10.53170024,191.45,191.44,1.6053]
[1735697710477,10.53170024,191.45,191.4,6.2956]
[1735697710674,33.0521,191.54,191.4,6.2956]
[1735697710881,10.53170024,191.46,191.4,6.2956]
[1735697713089,10.53170024,191.44,191.4,6.2956]
[1735697713669,10.53170024,191.42,191.39,1.6179]
[1735697714494,10.53170024,191.43,191.39,1.6179]
[1735697715487,10.53170024,191.42,191.39,1.6179]
[1735697716568,10.53170024,191.43,191.39,1.6179]
[1735697717177,10.53170024,191.44,191.39,1.6179]
[1735697717477,10.53170024,191.45,191.39,1.6179]
[1735697717993,10.53170024,191.44,191.39,1.6179]
[1735697718197,10.53170024,191.43,191.39,1.6179]
[1735697719493,10.53170024,191.43,191.37,23.776884]
[1735697719816,10.53170024,191.42,191.36,6.2956]
[1735697719984,33.0583,191.45,191.36,6.2956]
[1735697719985,10.53170024,191.4,191.36,6.2956]
[1735697720185,10.53170024,191.38,191.33,1.6179]
[1735697721173,10.53170024,191.39,191.33,1.6179]
[1735697721377,10.53170024,191.4,191.33,12.14960024]
[1735697721919,10.53170024,191.4,191.34,23.776884]
[1735697723214,10.53170024,191.39,191.34,23.776884]
[1735697723581,10.53170024,191.4,191.34,23.776884]
[1735697725901,10.53170024,191.39,191.34,23.776884]
[1735697726997,10.53170024,191.36,191.33,1.6179]
[1735697727198,10.53170024,191.35,191.33,1.6179]
[1735697727412,10.53170024,191.34,191.33,1.6179]
[1735697727577,10.53170024,191.34,191.28,1.6559]
[1735697727783,10.53170024,191.33,191.28,1.6559]
[1735697729609,10.53170024,191.32,191.28,1.6559]
[1735697733113,10.53170024,191.33,191.28,1.6559]
[1735697734815,13.0627,191.39,191.28,1.6559]
[1735697735020,10.53170024,191.37,191.3,10.53170024]
[1735697735180,10.53170024,191.37,191.31,23.776884]
[1735697735615,10.53170024,191.36,191.29,10.53170024]
[1735697735895,10.53170024,191.35,191.28,12.18760024]
[1735697736320,10.53170024,191.35,191.29,23.776884]
[1735697736897,10.53170024,191.33,191.29,23.776884]
[1735697737227,10.53170024,191.33,191.28,1.6559]
[1735697737419,10.53170024,191.32,191.28,1.6559]
[1735697739491,10.53170024,191.3,191.28,1.6559]
[1735697739691,10.53170024,191.29,191.23,12.18080024]
[1735697740224,10.53170024,191.27,191.23,1.6491]
[1735697740407,10.53170024,191.26,191.23,1.6491]
[1735697741527,10.53170024,191.24,191.18,1.6491]
[1735697741684,10.53170024,191.23,191.18,1.6491]
[1735697742018,10.53170024,191.23,191.19,23.776884]
[1735697742224,10.53170024,191.23,191.18,1.6491]
[1735697742620,10.53170024,191.23,191.19,23.776884]
[1735697743014,10.53170024,191.23,191.18,1.6491]
[1735697745412,10.53170024,191.22,191.18,1.6491]
[1735697746320,10.53170024,191.23,191.18,1.6491]
[1735697748620,10.53170024,191.23,191.19,23.776884]
[1735697749114,10.53170024,191.25,191.19,23.776884]
[1735697749438,10.53170024,191.26,191.19,34.30858424]
[1735697750699,10.53170024,191.24,191.19,23.776884]
[1735697751825,10.53170024,191.24,191.18,1.6491]
[1735697753129,10.53170024,191.22,191.18,1.6491]
[1735697753438,10.53170024,191.21,191.18,1.6491]
[1735697753612,10.53170024,191.19,191.18,1.6491]
[1735697755147,10.53170024,191.2,191.18,1.6491]
[1735697755649,10.53170024,191.21,191.18,1.6491]
[1735697756654,10.53170024,191.22,191.18,1.6491]
[1735697756820,10.53170024,191.21,191.18,1.6491]
[1735697757020,10.53170024,191.2,191.18,1.6491]
[1735697759354,10.53170024,191.21,191.18,1.6491]
[1735697759563,10.53170024,191.22,191.18,1.6491]
[1735697760657,10.53170024,191.21,191.18,1.6491]
[1735697761644,10.53170024,191.2,191.18,1.6491]
[1735697762660,10.53170024,191.21,191.18,1.6491]
[1735697763655,10.53170024,191.21,191.11,93.781]
[1735697763656,20.0,191.16,191.1,1.6317]
[1735697763841,10.53170024,191.11,191.1,1.6317]
[1735697765656,10.53170024,191.11,191.07,6.1836]
[1735697765957,10.53170024,191.09,191.07,6.1836]
[1735697766157,11.80858441,191.15,191.07,6.1836]
[1735697766158,10.53170024,191.1,191.07,6.1836]
[1735697766963,10.53170024,191.09,191.07,6.1836]
[1735697768765,10.53170024,191.1,191.07,6.1836]
[1735697774243,10.53170024,191.09,191.07,6.1836]
[1735697774968,10.53170024,191.1,191.07,6.1836]
[1735697778974,10.53170024,191.09,191.07,6.1836]
[1735697783182,28.42345859,191.18,191.07,6.1836]
[1735697783348,10.53170024,191.14,191.08,23.776884]
[1735697783848,7.20863384,191.2,191.08,34.30858424]
[1735697784164,10.53170024,191.15,191.08,34.30858424]
[1735697784371,10.53170024,191.15,191.08,35.09329593]
[1735697784869,10.53170024,191.14,191.08,35.09329593]
[1735697785065,10.53170024,191.14,191.1,23.776884]
[1735697786068,10.53170024,191.15,191.09,23.776884]
[1735697786463,10.53170024,191.15,191.1,2.6166329]
[1735697787768,10.53170024,191.16,191.12,23.776884]
[1735697787982,10.53170024,191.17,191.12,23.776884]
[1735697788782,10.53170024,191.18,191.12,23.776884]
[1735697788982,10.53170024,191.19,191.14,23.776884]
[1735697790782,10.53170024,191.18,191.14,23.776884]
[1735697790977,10.53170024,191.17,191.14,23.776884]
[1735697792078,10.53170024,191.16,191.14,23.776884]
[1735697792245,10.53170024,191.15,191.13,6.3112]
[1735697792448,10.53170024,191.14,191.13,6.3112]
[1735697792849,10.53170024,191.14,191.11,1.6263]
[1735697793048,10.53170024,191.13,191.11,1.6263]
[1735697797361,10.53170024,191.14,191.11,1.6263]
[1735697803962,10.53170024,191.15,191.12,23.776884]
[1735697804381,10.53170024,191.16,191.12,23.776884]
[1735697804858,10.53170024,191.15,191.12,23.776884]
[1735697808886,10.53170024,191.13,191.11,1.6263]
[1735697809575,10.53170024,191.12,191.09,2.62740561]
[1735697809883,42.12680096,191.2,191.09,2.62740561]
[1735697809884,10.53170024,191.1,191.09,2.62740561]
[1735697810062,10.53170024,191.1,191.06,1.6654]
[1735697815775,10.53170024,191.09,191.06,1.6654]
[1735697819496,10.53170024,191.11,191.06,1.6654]
[1735697819983,10.53170024,191.1,191.06,1.6654]
[1735697822085,10.53170024,191.11,191.07,23.776884]
[1735697822291,10.53170024,191.12,191.07,23.776884]
[1735697826493,7.20863384,191.16,191.07,36.860484]
[1735697826696,7.20863384,191.23,191.13,1.5401]
[1735697826902,10.53170024,191.18,191.14,23.776884]
[1735697827077,10.53170024,191.19,191.14,23.776884]
[1735697827474,10.53170024,191.2,191.14,24.56143112]
[1735697827995,10.53170024,191.2,191.16,23.776884]
[1735697828497,10.53170024,191.2,191.15,23.776884]
[1735697829497,10.53170024,191.21,191.15,23.776884]
[1735697830584,10.53170024,191.2,191.15,23.776884]
[1735697830788,10.53170024,191.2,191.14,23.776884]
[1735697831478,10.53170024,191.19,191.15,2.62387268]
[1735697832407,10.53170024,191.19,191.14,23.776884]
[1735697833704,10.53170024,191.18,191.14,23.776884]
[1735697833908,10.53170024,191.17,191.13,1.5401]
[1735697834612,10.53170024,191.16,191.13,1.5401]
[1735697834910,10.53170024,191.14,191.11,2.62360657]
[1735697835096,10.53170024,191.12,191.08,23.776884]
[1735697835300,10.53170024,191.11,191.07,1.5401]
[1735697835505,10.53170024,191.1,191.07,1.5401]
[1735697835701,10.53170024,191.1,191.08,2.62467737]
[1735697836718,10.53170024,191.11,191.08,2.62467737]
[1735697837111,10.53170024,191.1,191.08,2.62467737]
[1735697837534,10.53170024,191.09,191.08,2.62467737]
[1735697838508,10.53170024,191.09,191.03,2.62467737]
[1735697838704,10.53170024,191.06,191.03,2.62467737]
[1735697839014,10.53170024,191.06,191.02,1.5401]
[1735697840313,10.53170024,191.03,190.97,1.5401]
[1735697840500,45.63386885,191.1,190.97,1.5401]
[1735697840501,10.53170024,191.02,190.97,1.5401]
[1735697841593,10.53170024,191.02,190.98,23.776884]
[1735697841793,10.53170024,191.02,190.97,1.5401]
[1735697842603,10.53170024,191.0,190.97,1.5401]
[1735697843803,10.53170024,190.98,190.93,1.6466]
[1735697844120,10.53170024,190.97,190.93,1.6466]
[1735697845422,20.0,191.02,190.93,1.6466]
[1735697845715,10.53170024,190.95,190.93,1.6466]
[1735697845923,10.53170024,190.96,190.93,1.6466]
[1735697848814,3.50706789,191.04,190.94,23.776884]
[1735697849120,10.53170024,191.0,190.94,23.776884]
[1735697849303,10.53170024,190.99,190.94,23.776884]
[1735697850022,10.53170024,190.98,190.94,23.776884]
[1735697850326,10.53170024,190.97,190.94,23.776884]
[1735697851213,10.53170024,190.98,190.94,23.776884]
[1735697852817,10.53170024,190.97,190.94,23.776884]
[1735697856428,10.53170024,190.98,190.94,23.776884]
[1735697857029,10.53170024,190.96,190.93,1.6466]
[1735697859430,3.70156595,191.03,190.87,12.15520024]
[1735697859431,10.53170024,190.94,190.87,12.15520024]
[1735697859729,10.53170024,190.94,190.88,23.776884]
[1735697859930,10.53170024,190.95,190.88,24.41448945]
[1735697862420,10.53170024,190.97,190.92,20.0]
[1735697862731,10.53170024,190.97,190.91,23.776884]
[1735697863233,10.53170024,190.96,190.91,23.776884]
[1735697863614,10.53170024,190.96,190.89,34.30858424]
[1735697863814,10.53170024,190.95,190.9,23.776884]
[1735697864743,10.53170024,190.95,190.91,20.0]
[1735697864946,10.53170024,190.96,190.9,13.88132177]
[1735697866949,10.53170024,190.97,190.9,13.88132177]
[1735697867130,10.53170024,190.98,190.91,23.776884]
[1735697869358,10.53170024,190.97,190.91,23.776884]
[1735697869840,3.50706789,191.0,190.91,23.776884]
[1735697869841,10.53170024,190.96,190.91,23.776884]
[1735697870057,10.53170024,190.97,190.91,23.776884]
[1735697874853,10.53170024,190.96,190.91,23.776884]
[1735697876549,10.53170024,190.97,190.91,23.776884]
[1735697878843,10.53170024,190.97,190.91,34.30858424]
[1735697881733,10.53170024,190.97,190.91,23.776884]
[1735697888055,10.53170024,190.97,190.87,2.40903305]
[1735697888258,20.0,190.97,190.87,14.7211]
[1735697888429,10.53170024,190.93,190.88,23.776884]
[1735697888854,10.53170024,190.93,190.87,14.7211]
[1735697889257,10.53170024,190.93,190.88,23.776884]
[1735697889759,10.53170024,190.96,190.9,23.776884]
[1735697891043,10.53170024,190.95,190.9,23.776884]
[1735697892659,45.63386885,191.0,190.9,23.776884]
[1735697892660,10.53170024,190.96,190.9,23.776884]
[1735697892961,23.50706789,191.0,190.9,34.30858424]
[1735697893158,3.50706789,191.0,190.92,34.30858424]
[1735697893361,10.53170024,191.0,190.93,11.31706689]
[1735697893661,10.53170024,190.99,190.93,23.776884]
[1735697895771,10.53170024,191.01,190.95,23.776884]
[1735697896132,10.53170024,191.0,190.93,23.62550024]
[1735697896337,10.53170024,190.99,190.93,13.0938]
[1735697896545,10.53170024,190.99,190.93,36.870684]
[1735697896745,10.53170024,190.99,190.94,23.776884]
[1735697896946,10.53170024,191.0,190.94,23.776884]
[1735697901468,10.53170024,191.04,190.98,6.2319]
[1735697901671,10.53170024,191.04,190.99,23.776884]
[1735697904659,10.53170024,191.03,190.99,23.776884]
[1735697906075,10.53170024,191.04,190.99,23.776884]
[1735697906277,10.53170024,191.03,190.99,23.776884]
[1735697906487,10.53170024,191.02,190.99,23.776884]
[1735697908171,10.53170024,191.04,190.99,23.776884]
[1735697908471,10.53170024,191.05,190.99,23.776884]